[Event "*** Titled Tuesday Blitz"]
[Site "Chess.com"]
[Date "2019.01.01"]
[Round "10"]
[White "jerom555888"]
[Black "BartoszSocko"]
[Result "1/2-1/2"]
[WhiteElo "2704"]
[BlackElo "2672"]
[TimeControl "180+2"]
[EndTime "15:24:18 PST"]
[Termination "Game drawn by agreement"]

1. Nf3 {[%clk 0:03:01.9]} 1... d5 {[%clk 0:03:00.5]} 2. g3 {[%clk 0:03:02.8]}
2... Nc6 {[%clk 0:03:00.1]} 3. d4 {[%clk 0:03:03.4]} 3... Bf5 {[%clk 0:03:00.8]}
4. Bg2 {[%clk 0:03:03.6]} 4... Nb4 {[%clk 0:03:01.6]} 5. Na3 {[%clk 0:02:58.5]}
5... e6 {[%clk 0:03:02.7]} 6. c3 {[%clk 0:02:59.8]} 6... Nc6 {[%clk 0:03:03.2]}
7. Qb3 {[%clk 0:02:59.1]} 7... Bxa3 {[%clk 0:03:02.6]} 8. Qxa3 {[%clk
0:02:58.8]} 8... Nf6 {[%clk 0:03:01.3]} 9. Qb3 {[%clk 0:02:55.2]} 9... Rb8
{[%clk 0:02:57.2]} 10. O-O {[%clk 0:02:51.1]} 10... Be4 {[%clk 0:02:58.4]} 11.
Bh3 {[%clk 0:02:45.3]} 11... Bxf3 {[%clk 0:02:58.5]} 12. exf3 {[%clk 0:02:46]}
12... O-O {[%clk 0:03:00.4]} 13. Re1 {[%clk 0:02:46.4]} 13... b5 {[%clk
0:02:52.1]} 14. Bg5 {[%clk 0:02:40.1]} 14... h6 {[%clk 0:02:52.8]} 15. Bf4
{[%clk 0:02:40.6]} 15... a5 {[%clk 0:02:37.4]} 16. a4 {[%clk 0:02:36.5]} 16...
b4 {[%clk 0:02:37.8]} 17. Qc2 {[%clk 0:02:32.6]} 17... Ne8 {[%clk 0:02:32]} 18.
Rad1 {[%clk 0:02:26.9]} 18... b3 {[%clk 0:02:33.1]} 19. Qe2 {[%clk 0:02:23.3]}
19... Nd6 {[%clk 0:02:34.1]} 20. Bxd6 {[%clk 0:02:24.4]} 20... Qxd6 {[%clk
0:02:32.7]} 21. f4 {[%clk 0:02:25.5]} 21... Ne7 {[%clk 0:02:25.1]} 22. Qh5
{[%clk 0:02:23.8]} 22... Qd7 {[%clk 0:02:14.2]} 23. Ra1 {[%clk 0:02:24]} 23...
Kh7 {[%clk 0:02:06.3]} 24. Ra3 {[%clk 0:02:14.1]} 24... Rb6 {[%clk 0:02:02.5]}
25. Bf1 {[%clk 0:02:12]} 25... g6 {[%clk 0:01:59.1]} 26. Qd1 {[%clk 0:02:10.2]}
26... Rfb8 {[%clk 0:01:59.8]} 27. Bb5 {[%clk 0:02:11]} 27... c6 {[%clk
0:02:00.1]} 28. Bd3 {[%clk 0:02:11.9]} 28... Kg7 {[%clk 0:01:54]} 29. h4 {[%clk
0:02:13]} 29... h5 {[%clk 0:01:53.6]} 30. Re5 {[%clk 0:02:11.8]} 30... Nf5
{[%clk 0:01:42]} 31. Bxf5 {[%clk 0:02:10.9]} 31... exf5 {[%clk 0:01:43.9]} 32.
Qe2 {[%clk 0:02:11.2]} 32... Qd6 {[%clk 0:01:44.4]} 33. Ra1 {[%clk 0:02:10.3]}
33... R6b7 {[%clk 0:01:38.7]} 34. Re1 {[%clk 0:02:11]} 34... Rd7 {[%clk
0:01:34.1]} 35. Kg2 {[%clk 0:02:11.1]} 35... c5 {[%clk 0:01:33.8]} 36. Rd1
{[%clk 0:02:07.8]} 36... Qc6 {[%clk 0:01:27.5]} 37. Kh2 {[%clk 0:01:57.6]} 37...
Qxa4 {[%clk 0:01:21.5]} 38. dxc5 {[%clk 0:01:56.4]} 38... Qc6 {[%clk 0:01:21.8]}
39. Qe3 {[%clk 0:01:49.2]} 39... Rb5 {[%clk 0:01:11.3]} 40. Re8 {[%clk
0:01:23.5]} 40... Qf6 {[%clk 0:01:02.9]} 41. Rc8 {[%clk 0:00:40.4]} 41... Re7
{[%clk 0:01:01.7]} 42. Qd3 {[%clk 0:00:41.4]} 42... Rbb7 {[%clk 0:00:57.1]} 43.
Qxd5 {[%clk 0:00:42.1]} 43... Rbc7 {[%clk 0:00:53.1]} 44. Rxc7 {[%clk
0:00:28.6]} 44... Rxc7 {[%clk 0:00:55]} 45. Qxb3 {[%clk 0:00:29.3]} 45... Rxc5
{[%clk 0:00:54.3]} 46. Rd5 {[%clk 0:00:30.8]} 46... Rxd5 {[%clk 0:00:41.9]} 47.
Qxd5 {[%clk 0:00:31.4]} 47... Qb6 {[%clk 0:00:43.6]} 48. Qd4+ {[%clk 0:00:24.7]}
48... Qxd4 {[%clk 0:00:45.2]} 49. cxd4 {[%clk 0:00:26.3]} 49... Kf6 {[%clk
0:00:47.1]} 50. Kg2 {[%clk 0:00:27.6]} 50... Ke6 {[%clk 0:00:49]} 51. Kf3 {[%clk
0:00:29.1]} 51... Kd5 {[%clk 0:00:50.9]} 52. Ke3 {[%clk 0:00:27.2]} 52... Kc4
{[%clk 0:00:52.3]} 53. b3+ {[%clk 0:00:25.4]} 53... Kxb3 {[%clk 0:00:45.1]} 54.
d5 {[%clk 0:00:25.7]} 54... a4 {[%clk 0:00:47]} 55. d6 {[%clk 0:00:27.2]} 55...
a3 {[%clk 0:00:48.9]} 56. d7 {[%clk 0:00:28.8]} 56... a2 {[%clk 0:00:50.8]} 57.
d8=Q {[%clk 0:00:30.4]} 57... a1=Q {[%clk 0:00:52.7]} 58. Qb6+ {[%clk
0:00:20.7]} 58... Kc2 {[%clk 0:00:52.9]} 59. Qc6+ {[%clk 0:00:22.1]} 59... Qc3+
{[%clk 0:00:51.2]} 60. Qxc3+ {[%clk 0:00:21.3]} 60... Kxc3 {[%clk 0:00:53.1]}
61. f3 {[%clk 0:00:20.9]} 61... Kc2 {[%clk 0:00:40.7]} 62. Ke2 {[%clk 0:00:22]}
62... f6 {[%clk 0:00:38.7]} 63. Ke3 {[%clk 0:00:23.2]} 63... Kd1 {[%clk
0:00:40]} 64. g4 {[%clk 0:00:13.5]} 64... Ke1 {[%clk 0:00:30.2]} 65. g5 {[%clk
0:00:14.3]} 65... fxg5 {[%clk 0:00:31.1]} 66. fxg5 {[%clk 0:00:16.2]} 66... Kf1
{[%clk 0:00:29.9]} 67. Kf4 {[%clk 0:00:17.6]} 67... Kg2 {[%clk 0:00:31.1]} 68.
Ke5 {[%clk 0:00:19.1]} 68... Kxf3 {[%clk 0:00:31.8]} 69. Kf6 {[%clk 0:00:20.6]}
69... f4 {[%clk 0:00:33]} 70. Kxg6 {[%clk 0:00:22.1]} 70... Kg4 {[%clk
0:00:16.5]} 71. Kh6 {[%clk 0:00:21.2]} 71... f3 {[%clk 0:00:17.2]} 72. g6 {[%clk
0:00:23.1]} 72... f2 {[%clk 0:00:18.7]} 73. g7 {[%clk 0:00:25]} 73... f1=Q
{[%clk 0:00:20.2]} 74. g8=Q+ {[%clk 0:00:26.9]} 74... Kxh4 {[%clk 0:00:20.2]}
75. Qg5+ {[%clk 0:00:27.8]} 75... Kh3 {[%clk 0:00:21.6]} 76. Qxh5+ {[%clk
0:00:29]} 76... Kg2 {[%clk 0:00:23]} 1/2-1/2

[Event "*** Titled Tuesday Blitz"]
[Site "Chess.com"]
[Date "2019.01.01"]
[Round "10"]
[White "HouseOfDurin"]
[Black "GremioPrudente"]
[Result "1/2-1/2"]
[WhiteElo "1872"]
[BlackElo "2018"]
[TimeControl "180+2"]
[EndTime "15:24:20 PST"]
[Termination "Game drawn - insufficient material"]

1. d4 {[%clk 0:03:01.7]} 1... d5 {[%clk 0:02:59.6]} 2. Bg5 {[%clk 0:03:02.6]}
2... c6 {[%clk 0:02:59.4]} 3. e3 {[%clk 0:03:02.8]} 3... Qb6 {[%clk 0:02:59.8]}
4. b3 {[%clk 0:03:03.2]} 4... e6 {[%clk 0:02:56.1]} 5. Bd3 {[%clk 0:02:56.4]}
5... Nd7 {[%clk 0:02:52.7]} 6. Nf3 {[%clk 0:02:45.3]} 6... Ngf6 {[%clk
0:02:51.3]} 7. Nbd2 {[%clk 0:02:42.7]} 7... Bb4 {[%clk 0:02:48.7]} 8. O-O {[%clk
0:02:42.3]} 8... h6 {[%clk 0:02:44.6]} 9. Bh4 {[%clk 0:02:42.2]} 9... O-O {[%clk
0:02:35.2]} 10. a3 {[%clk 0:02:42.7]} 10... Bd6 {[%clk 0:02:32.4]} 11. c4 {[%clk
0:02:41.2]} 11... dxc4 {[%clk 0:02:27.6]} 12. bxc4 {[%clk 0:02:43.1]} 12... Qc7
{[%clk 0:02:26.5]} 13. c5 {[%clk 0:02:39.3]} 13... Be7 {[%clk 0:02:25]} 14. Ne4
{[%clk 0:02:26]} 14... Qd8 {[%clk 0:02:24]} 15. Bg3 {[%clk 0:01:50]} 15... Nxe4
{[%clk 0:02:20.5]} 16. Bxe4 {[%clk 0:01:51.9]} 16... Nf6 {[%clk 0:02:18.7]} 17.
Bc2 {[%clk 0:01:44.9]} 17... Nh5 {[%clk 0:02:17.2]} 18. Qd3 {[%clk 0:01:44.3]}
18... f5 {[%clk 0:02:13.1]} 19. Be5 {[%clk 0:01:41.1]} 19... Bf6 {[%clk
0:02:10.6]} 20. Qc4 {[%clk 0:01:15.9]} 20... Qd5 {[%clk 0:02:03.9]} 21. Bb3
{[%clk 0:01:12.4]} 21... Qxc4 {[%clk 0:02:00.2]} 22. Bxc4 {[%clk 0:01:14.3]}
22... Bxe5 {[%clk 0:01:59.5]} 23. Nxe5 {[%clk 0:01:16.2]} 23... Nf6 {[%clk
0:01:57.7]} 24. f3 {[%clk 0:01:10.6]} 24... Nd5 {[%clk 0:01:57.6]} 25. Rfe1
{[%clk 0:01:04.4]} 25... Rd8 {[%clk 0:01:57.9]} 26. Kf2 {[%clk 0:00:54.8]} 26...
Bd7 {[%clk 0:01:45.2]} 27. Rab1 {[%clk 0:00:54]} 27... Rab8 {[%clk 0:01:36.4]}
28. Nxd7 {[%clk 0:00:43.3]} 28... Rxd7 {[%clk 0:01:36.8]} 29. Rb3 {[%clk
0:00:42.7]} 29... Kf7 {[%clk 0:01:26.8]} 30. e4 {[%clk 0:00:36]} 30... fxe4
{[%clk 0:01:23.5]} 31. fxe4 {[%clk 0:00:35.1]} 31... Nf6 {[%clk 0:01:16.4]} 32.
Rd3 {[%clk 0:00:18.9]} 32... Rbd8 {[%clk 0:01:15]} 33. d5 {[%clk 0:00:14.9]}
33... exd5 {[%clk 0:01:09.7]} 34. e5 {[%clk 0:00:15.6]} 34... Ng4+ {[%clk
0:01:01.7]} 35. Kg3 {[%clk 0:00:16.3]} 35... Nxe5 {[%clk 0:00:50.9]} 36. Rxe5
{[%clk 0:00:16.5]} 36... dxc4 {[%clk 0:00:50.7]} 37. Rf3+ {[%clk 0:00:12.5]}
37... Kg8 {[%clk 0:00:48.5]} 38. Re4 {[%clk 0:00:13.7]} 38... Rd4 {[%clk
0:00:43.3]} 39. Re7 {[%clk 0:00:13.4]} 39... R4d7 {[%clk 0:00:37.2]} 40. Re4
{[%clk 0:00:13.2]} 40... c3 {[%clk 0:00:35.2]} 41. Rxc3 {[%clk 0:00:11.7]} 41...
Rd3+ {[%clk 0:00:36.2]} 42. Re3 {[%clk 0:00:12.9]} 42... Rxe3+ {[%clk
0:00:32.2]} 43. Rxe3 {[%clk 0:00:14.8]} 43... Rd5 {[%clk 0:00:32.9]} 44. Re7
{[%clk 0:00:14.3]} 44... Rxc5 {[%clk 0:00:32.2]} 45. Rxb7 {[%clk 0:00:14.7]}
45... Ra5 {[%clk 0:00:33]} 46. Rb8+ {[%clk 0:00:08.3]} 46... Kh7 {[%clk
0:00:32.3]} 47. Rb3 {[%clk 0:00:08.3]} 47... c5 {[%clk 0:00:32.1]} 48. Kf4
{[%clk 0:00:07.8]} 48... a6 {[%clk 0:00:29.2]} 49. Rc3 {[%clk 0:00:07.9]} 49...
c4 {[%clk 0:00:25.5]} 50. Ke4 {[%clk 0:00:07.7]} 50... Rh5 {[%clk 0:00:21.3]}
51. h3 {[%clk 0:00:08.2]} 51... Rh4+ {[%clk 0:00:21.7]} 52. g4 {[%clk
0:00:09.1]} 52... h5 {[%clk 0:00:20.3]} 53. Kf5 {[%clk 0:00:10]} 53... hxg4
{[%clk 0:00:21]} 54. hxg4 {[%clk 0:00:11.9]} 54... g6+ {[%clk 0:00:16.3]} 55.
Kg5 {[%clk 0:00:12.4]} 55... Rh1 {[%clk 0:00:15.3]} 56. Rxc4 {[%clk 0:00:13.7]}
56... Ra1 {[%clk 0:00:13.5]} 57. Rc7+ {[%clk 0:00:13.9]} 57... Kg8 {[%clk
0:00:11.8]} 58. Kxg6 {[%clk 0:00:15.2]} 58... Kf8 {[%clk 0:00:12.5]} 59. Rc3
{[%clk 0:00:14]} 59... a5 {[%clk 0:00:10.7]} 60. g5 {[%clk 0:00:14.6]} 60... a4
{[%clk 0:00:11.9]} 61. Kf6 {[%clk 0:00:14.4]} 61... Ke8 {[%clk 0:00:12.7]} 62.
g6 {[%clk 0:00:14.8]} 62... Rf1+ {[%clk 0:00:11.6]} 63. Kg7 {[%clk 0:00:15.9]}
63... Rb1 {[%clk 0:00:11.5]} 64. Re3+ {[%clk 0:00:16.6]} 64... Kd7 {[%clk
0:00:11.7]} 65. Kh8 {[%clk 0:00:16.9]} 65... Rh1+ {[%clk 0:00:12.3]} 66. Kg8
{[%clk 0:00:17.7]} 66... Rb1 {[%clk 0:00:13.5]} 67. g7 {[%clk 0:00:18.8]} 67...
Rb3 {[%clk 0:00:14.7]} 68. Rxb3 {[%clk 0:00:14.5]} 68... axb3 {[%clk 0:00:15.7]}
69. Kh8 {[%clk 0:00:14.9]} 69... b2 {[%clk 0:00:17.6]} 70. g8=Q {[%clk
0:00:16.4]} 70... b1=Q {[%clk 0:00:15.4]} 71. Qd5+ {[%clk 0:00:17.3]} 71... Kc7
{[%clk 0:00:15.4]} 72. Qc5+ {[%clk 0:00:16.5]} 72... Kb7 {[%clk 0:00:15.8]} 73.
Qb4+ {[%clk 0:00:15.4]} 73... Qxb4 {[%clk 0:00:16]} 74. axb4 {[%clk 0:00:17.3]}
74... Kb6 {[%clk 0:00:17.4]} 75. Kg7 {[%clk 0:00:18]} 75... Kb5 {[%clk
0:00:18.8]} 76. Kh8 {[%clk 0:00:18.8]} 76... Kxb4 {[%clk 0:00:20.5]} 1/2-1/2

[Event "*** Titled Tuesday Blitz"]
[Site "Chess.com"]
[Date "2019.01.01"]
[Round "10"]
[White "WPWPWP-2015"]
[Black "Kawhi_Leonard2"]
[Result "1-0"]
[WhiteElo "2325"]
[BlackElo "2256"]
[TimeControl "180+2"]
[EndTime "15:24:49 PST"]
[Termination "WPWPWP-2015 won by resignation"]

1. d4 {[%clk 0:03:01.9]} 1... Nf6 {[%clk 0:03:00.3]} 2. c4 {[%clk 0:02:59.8]}
2... c5 {[%clk 0:03:00.7]} 3. d5 {[%clk 0:02:53.5]} 3... e6 {[%clk 0:03:01.8]}
4. Nc3 {[%clk 0:02:53.1]} 4... exd5 {[%clk 0:03:03]} 5. cxd5 {[%clk 0:02:51.9]}
5... d6 {[%clk 0:03:04.9]} 6. g3 {[%clk 0:02:51.6]} 6... g6 {[%clk 0:03:06.2]}
7. Bg2 {[%clk 0:02:52.2]} 7... Bg7 {[%clk 0:03:07.8]} 8. Nf3 {[%clk 0:02:50.3]}
8... O-O {[%clk 0:03:08.6]} 9. O-O {[%clk 0:02:50.6]} 9... a6 {[%clk 0:03:07.3]}
10. a4 {[%clk 0:02:50.1]} 10... Nbd7 {[%clk 0:03:08.3]} 11. a5 {[%clk
0:02:49.8]} 11... Re8 {[%clk 0:03:07.5]} 12. Re1 {[%clk 0:02:49.2]} 12... Rb8
{[%clk 0:02:59.7]} 13. e4 {[%clk 0:02:46.2]} 13... Ng4 {[%clk 0:02:56.5]} 14.
Nd2 {[%clk 0:02:40.3]} 14... Nge5 {[%clk 0:02:55.9]} 15. Qc2 {[%clk 0:02:34.3]}
15... b5 {[%clk 0:02:44.7]} 16. axb6 {[%clk 0:02:33.7]} 16... Nxb6 {[%clk
0:02:45.9]} 17. h3 {[%clk 0:02:25.4]} 17... f5 {[%clk 0:02:43.5]} 18. Kh2 {[%clk
0:02:16]} 18... Nec4 {[%clk 0:02:19.9]} 19. Nf3 {[%clk 0:02:05.1]} 19... h6
{[%clk 0:01:57.8]} 20. Nh4 {[%clk 0:01:53.4]} 20... g5 {[%clk 0:01:34.1]} 21.
Nf3 {[%clk 0:01:23.1]} 21... Qf6 {[%clk 0:01:23]} 22. Nd2 {[%clk 0:01:07.4]}
22... f4 {[%clk 0:01:07.8]} 23. Nxc4 {[%clk 0:01:03.4]} 23... Nxc4 {[%clk
0:01:08]} 24. Ra4 {[%clk 0:00:55.6]} 24... fxg3+ {[%clk 0:01:00.2]} 25. fxg3
{[%clk 0:00:54.7]} 25... Ne5 {[%clk 0:01:00.6]} 26. Rf1 {[%clk 0:00:52.5]} 26...
Qg6 {[%clk 0:00:58.9]} 27. Nd1 {[%clk 0:00:47.6]} 27... Bd7 {[%clk 0:00:42.8]}
28. Ra3 {[%clk 0:00:44]} 28... Bb5 {[%clk 0:00:43.7]} 29. Rf2 {[%clk 0:00:41.4]}
29... Rf8 {[%clk 0:00:44.7]} 30. Be3 {[%clk 0:00:35.8]} 30... Rxf2 {[%clk
0:00:44.8]} 31. Nxf2 {[%clk 0:00:35.4]} 31... Rf8 {[%clk 0:00:39.9]} 32. b3
{[%clk 0:00:30.6]} 32... Nf3+ {[%clk 0:00:35.9]} 33. Kh1 {[%clk 0:00:30.5]}
33... Ne1 {[%clk 0:00:29.1]} 34. Qd1 {[%clk 0:00:27.9]} 34... Nxg2 {[%clk
0:00:27.3]} 35. Kxg2 {[%clk 0:00:28.1]} 35... Be5 {[%clk 0:00:20.3]} 36. Qg4
{[%clk 0:00:20.1]} 36... Kh7 {[%clk 0:00:14.7]} 37. Ra2 {[%clk 0:00:19]} 37...
Qf7 {[%clk 0:00:15.1]} 38. Rd2 {[%clk 0:00:16]} 38... Bd7 {[%clk 0:00:15.1]} 39.
Qe2 {[%clk 0:00:15.5]} 39... Bb5 {[%clk 0:00:13.4]} 40. Qg4 {[%clk 0:00:13.7]}
40... Bd7 {[%clk 0:00:11.3]} 41. Qe2 {[%clk 0:00:14.4]} 41... a5 {[%clk
0:00:12.8]} 42. Ra2 {[%clk 0:00:13.8]} 42... Bc3 {[%clk 0:00:11.9]} 43. Rc2
{[%clk 0:00:13.8]} 43... Be5 {[%clk 0:00:12.5]} 44. Ra2 {[%clk 0:00:14.1]} 44...
Ra8 {[%clk 0:00:12.8]} 45. Bd2 {[%clk 0:00:13.2]} 45... a4 {[%clk 0:00:12.6]}
46. bxa4 {[%clk 0:00:13.5]} 46... Rxa4 {[%clk 0:00:13.8]} 47. Rxa4 {[%clk
0:00:13.5]} 47... Bxa4 {[%clk 0:00:14.8]} 48. Ng4 {[%clk 0:00:14.1]} 48... Bg7
{[%clk 0:00:13.1]} 49. Qd3 {[%clk 0:00:14.2]} 49... Kh8 {[%clk 0:00:09.6]} 50.
Ne3 {[%clk 0:00:13.2]} 50... Bd7 {[%clk 0:00:09.9]} 51. Nf5 {[%clk 0:00:13.7]}
51... Bxf5 {[%clk 0:00:06.1]} 52. exf5 {[%clk 0:00:14.8]} 52... Qe7 {[%clk
0:00:07.1]} 53. Bc3 {[%clk 0:00:12.9]} 53... Bxc3 {[%clk 0:00:06.9]} 54. Qxc3+
{[%clk 0:00:13.7]} 54... Kg8 {[%clk 0:00:08.3]} 55. Qd3 {[%clk 0:00:11.5]} 55...
Kf7 {[%clk 0:00:07.8]} 56. Kf3 {[%clk 0:00:11.1]} 56... Qe5 {[%clk 0:00:08.9]}
57. g4 {[%clk 0:00:10.8]} 57... Qh2 {[%clk 0:00:08.4]} 58. Qe4 {[%clk
0:00:07.1]} 58... Qxh3+ {[%clk 0:00:08.5]} 59. Ke2 {[%clk 0:00:07.7]} 59... Qh2+
{[%clk 0:00:09.7]} 60. Kd1 {[%clk 0:00:08.5]} 60... Qe5 {[%clk 0:00:10.8]} 61.
Qc4 {[%clk 0:00:08.5]} 61... Qd4+ {[%clk 0:00:07.8]} 62. Qxd4 {[%clk 0:00:08.9]}
62... cxd4 {[%clk 0:00:09.1]} 63. Kd2 {[%clk 0:00:10]} 63... Kf6 {[%clk
0:00:10.6]} 64. Kd3 {[%clk 0:00:11]} 64... Ke5 {[%clk 0:00:11.5]} 65. Kc4 {[%clk
0:00:09.2]} 65... Ke4 {[%clk 0:00:12.8]} 66. f6 {[%clk 0:00:09.8]} 66... d3
{[%clk 0:00:13.3]} 67. f7 {[%clk 0:00:09]} 67... d2 {[%clk 0:00:14.7]} 68. f8=Q
{[%clk 0:00:08.6]} 68... d1=Q {[%clk 0:00:16.4]} 69. Qe7+ {[%clk 0:00:07.7]}
69... Kf3 {[%clk 0:00:15.6]} 70. Qxd6 {[%clk 0:00:07.5]} 70... Qa4+ {[%clk
0:00:08.3]} 71. Kc3 {[%clk 0:00:06.5]} 71... Kxg4 {[%clk 0:00:04.5]} 72. Qe6+
{[%clk 0:00:07]} 72... Kf4 {[%clk 0:00:04.9]} 73. d6 {[%clk 0:00:07.5]} 73...
Qc6+ {[%clk 0:00:05.9]} 74. Kd4 {[%clk 0:00:07]} 74... g4 {[%clk 0:00:07.3]} 75.
Qf6+ {[%clk 0:00:05.1]} 75... Kg3 {[%clk 0:00:08.2]} 76. Qe5+ {[%clk 0:00:05.1]}
76... Kg2 {[%clk 0:00:09]} 77. Qe4+ {[%clk 0:00:05.2]} 77... Qxe4+ {[%clk
0:00:08.9]} 78. Kxe4 {[%clk 0:00:06.5]} 78... g3 {[%clk 0:00:10.4]} 79. d7
{[%clk 0:00:07.9]} 79... Kf2 {[%clk 0:00:10.9]} 80. d8=Q {[%clk 0:00:08.5]}
80... g2 {[%clk 0:00:12.8]} 81. Qd2+ {[%clk 0:00:08.5]} 81... Kf1 {[%clk
0:00:13.7]} 82. Kf3 {[%clk 0:00:09.3]} 1-0

[Event "*** Titled Tuesday Blitz"]
[Site "Chess.com"]
[Date "2019.01.01"]
[Round "10"]
[White "StephenDedalus83"]
[Black "gmjlh"]
[Result "1-0"]
[WhiteElo "2716"]
[BlackElo "2640"]
[TimeControl "180+2"]
[EndTime "15:26:29 PST"]
[Termination "StephenDedalus83 won on time"]

1. e4 {[%clk 0:03:01.9]} 1... c6 {[%clk 0:02:54.9]} 2. Nc3 {[%clk 0:03:01.7]}
2... d5 {[%clk 0:02:55.5]} 3. Nf3 {[%clk 0:03:02.9]} 3... dxe4 {[%clk
0:02:45.1]} 4. Nxe4 {[%clk 0:03:04.8]} 4... Nf6 {[%clk 0:02:46.3]} 5. Qe2 {[%clk
0:03:05.1]} 5... Nxe4 {[%clk 0:02:47.4]} 6. Qxe4 {[%clk 0:03:06.4]} 6... Qa5
{[%clk 0:02:48.6]} 7. Bd3 {[%clk 0:03:04]} 7... Na6 {[%clk 0:02:43.5]} 8. Bc4
{[%clk 0:02:14.3]} 8... Qf5 {[%clk 0:02:30.9]} 9. Qxf5 {[%clk 0:02:12.4]} 9...
Bxf5 {[%clk 0:02:32.8]} 10. d3 {[%clk 0:02:13.6]} 10... Nb4 {[%clk 0:02:30.9]}
11. Bb3 {[%clk 0:02:10.1]} 11... h6 {[%clk 0:02:24.6]} 12. a3 {[%clk 0:02:06.9]}
12... Nd5 {[%clk 0:02:25]} 13. Bd2 {[%clk 0:02:06]} 13... e6 {[%clk 0:02:25.7]}
14. O-O {[%clk 0:02:02.5]} 14... Bc5 {[%clk 0:02:22.4]} 15. d4 {[%clk
0:01:59.6]} 15... Bd6 {[%clk 0:02:22.1]} 16. Rfe1 {[%clk 0:01:58.5]} 16... O-O
{[%clk 0:02:20.8]} 17. Ne5 {[%clk 0:01:59.5]} 17... Rad8 {[%clk 0:02:20.1]} 18.
c4 {[%clk 0:01:59.8]} 18... Nf6 {[%clk 0:02:05.1]} 19. Be3 {[%clk 0:01:55.1]}
19... Ng4 {[%clk 0:01:32.4]} 20. Nxg4 {[%clk 0:01:54.5]} 20... Bxg4 {[%clk
0:01:34.3]} 21. Bc2 {[%clk 0:01:46.3]} 21... Bc7 {[%clk 0:01:24.3]} 22. h3
{[%clk 0:01:44.9]} 22... Bf5 {[%clk 0:01:25.5]} 23. Bxf5 {[%clk 0:01:45.1]}
23... exf5 {[%clk 0:01:27.4]} 24. f3 {[%clk 0:01:39.8]} 24... Rfe8 {[%clk
0:01:22.4]} 25. Bf2 {[%clk 0:01:40.2]} 25... Kf8 {[%clk 0:01:20.6]} 26. Kf1
{[%clk 0:01:40.6]} 26... Bb6 {[%clk 0:01:16.1]} 27. Rxe8+ {[%clk 0:01:40]} 27...
Kxe8 {[%clk 0:01:18]} 28. Rd1 {[%clk 0:01:40.5]} 28... f4 {[%clk 0:01:13.5]} 29.
Ke2 {[%clk 0:01:39.8]} 29... f5 {[%clk 0:01:11]} 30. Kd3 {[%clk 0:01:37.9]}
30... Kf7 {[%clk 0:01:11.2]} 31. Kc3 {[%clk 0:01:33.7]} 31... g5 {[%clk
0:01:10.1]} 32. b4 {[%clk 0:01:31]} 32... h5 {[%clk 0:01:10.1]} 33. Re1 {[%clk
0:01:29.8]} 33... Bc7 {[%clk 0:00:50.6]} 34. a4 {[%clk 0:01:23.9]} 34... a6
{[%clk 0:00:50.8]} 35. Rb1 {[%clk 0:01:23]} 35... g4 {[%clk 0:00:42.4]} 36. hxg4
{[%clk 0:01:22.3]} 36... fxg4 {[%clk 0:00:39.2]} 37. b5 {[%clk 0:01:13.1]} 37...
g3 {[%clk 0:00:30.9]} 38. Bg1 {[%clk 0:01:13.5]} 38... Ba5+ {[%clk 0:00:22.4]}
39. Kd3 {[%clk 0:01:14.2]} 39... Re8 {[%clk 0:00:19.1]} 40. bxa6 {[%clk
0:01:11.1]} 40... bxa6 {[%clk 0:00:20.1]} 41. d5 {[%clk 0:01:09.8]} 41... cxd5
{[%clk 0:00:22]} 42. cxd5 {[%clk 0:01:10.8]} 42... Re5 {[%clk 0:00:21]} 43. Rb7+
{[%clk 0:01:00.1]} 43... Kg6 {[%clk 0:00:16.3]} 44. Ra7 {[%clk 0:01:00.6]} 44...
Rxd5+ {[%clk 0:00:14.7]} 45. Ke4 {[%clk 0:01:01.3]} 45... Rd6 {[%clk 0:00:13.8]}
46. Kxf4 {[%clk 0:00:58.1]} 46... h4 {[%clk 0:00:08.3]} 47. Kg4 {[%clk
0:00:59.1]} 47... Bd8 {[%clk 0:00:09.6]} 48. Be3 {[%clk 0:00:56.7]} 48... Rc6
{[%clk 0:00:08.7]} 49. Rd7 {[%clk 0:00:56.1]} 49... Bf6 {[%clk 0:00:08.1]} 50.
f4 {[%clk 0:00:53.8]} 50... Rc4 {[%clk 0:00:05.3]} 51. Rd6 {[%clk 0:00:54.4]}
51... Rxa4 {[%clk 0:00:04.4]} 52. Bb6 {[%clk 0:00:55]} 52... Kf7 {[%clk
0:00:05.3]} 53. Kf5 {[%clk 0:00:54.6]} 53... Be7 {[%clk 0:00:05.4]} 54. Rh6
{[%clk 0:00:55]} 54... Rb4 {[%clk 0:00:06.4]} 55. Rh7+ {[%clk 0:00:52]} 55...
Kg8 {[%clk 0:00:06.2]} 56. Rxe7 {[%clk 0:00:52.5]} 56... Rxb6 {[%clk 0:00:07.4]}
57. Kg4 {[%clk 0:00:53.1]} 57... Rh6 {[%clk 0:00:07.6]} 58. Kh3 {[%clk
0:00:48.3]} 58... Kf8 {[%clk 0:00:08.9]} 59. Ra7 {[%clk 0:00:48.4]} 59... Ke8
{[%clk 0:00:10.3]} 60. f5 {[%clk 0:00:49.2]} 60... Kd8 {[%clk 0:00:11.4]} 61.
Rb7 {[%clk 0:00:44.6]} 61... Kc8 {[%clk 0:00:12.5]} 62. Rb4 {[%clk 0:00:45.2]}
62... Kc7 {[%clk 0:00:09.5]} 63. Rxh4 {[%clk 0:00:37.3]} 63... Rxh4+ {[%clk
0:00:09.6]} 64. Kxh4 {[%clk 0:00:38.5]} 64... a5 {[%clk 0:00:11]} 65. Kg5 {[%clk
0:00:38.7]} 65... a4 {[%clk 0:00:12]} 66. f6 {[%clk 0:00:40]} 66... Kd7 {[%clk
0:00:12.1]} 67. Kg6 {[%clk 0:00:39.9]} 67... a3 {[%clk 0:00:13]} 68. f7 {[%clk
0:00:41]} 68... a2 {[%clk 0:00:11.3]} 69. f8=Q {[%clk 0:00:41.5]} 69... a1=Q
{[%clk 0:00:12.4]} 70. Qf5+ {[%clk 0:00:41.9]} 70... Kd6 {[%clk 0:00:11.4]} 71.
Qd3+ {[%clk 0:00:40.1]} 71... Ke6 {[%clk 0:00:11.1]} 72. Qxg3 {[%clk 0:00:40]}
72... Qf6+ {[%clk 0:00:04.8]} 73. Kh5 {[%clk 0:00:39.1]} 73... Qh8+ {[%clk
0:00:04.8]} 74. Kg4 {[%clk 0:00:37.9]} 74... Qg7+ {[%clk 0:00:04.2]} 75. Kf4
{[%clk 0:00:38.8]} 75... Qe5+ {[%clk 0:00:03]} 76. Kf3 {[%clk 0:00:39.8]} 76...
Qc3+ {[%clk 0:00:03.6]} 77. Kg4 {[%clk 0:00:40.5]} 77... Qb4+ {[%clk 0:00:02.8]}
78. Kh5 {[%clk 0:00:37.8]} 78... Kf7 {[%clk 0:00:02.8]} 79. Qg6+ {[%clk
0:00:37.4]} 79... Kf8 {[%clk 0:00:04.2]} 80. g4 {[%clk 0:00:38.3]} 80... Qb5+
{[%clk 0:00:03.5]} 81. Kh6 {[%clk 0:00:38.9]} 81... Qe2 {[%clk 0:00:02.8]} 82.
Qf6+ {[%clk 0:00:37.7]} 82... Ke8 {[%clk 0:00:04.2]} 83. g5 {[%clk 0:00:38.3]}
83... Qh2+ {[%clk 0:00:03.7]} 84. Kg7 {[%clk 0:00:38.8]} 84... Qc7+ {[%clk
0:00:04.7]} 85. Kh8 {[%clk 0:00:38.4]} 85... Qh2+ {[%clk 0:00:05]} 86. Kg8
{[%clk 0:00:38.5]} 86... Qa2+ {[%clk 0:00:06.1]} 87. Kg7 {[%clk 0:00:38.9]}
87... Qa7+ {[%clk 0:00:07.5]} 88. Kh8 {[%clk 0:00:32.7]} 88... Qa2 {[%clk
0:00:07.8]} 89. Qe5+ {[%clk 0:00:27.3]} 89... Kf7 {[%clk 0:00:08.2]} 90. Qf5+
{[%clk 0:00:28.1]} 90... Ke7 {[%clk 0:00:07.7]} 91. g6 {[%clk 0:00:29.2]} 91...
Qa8+ {[%clk 0:00:07.7]} 92. Kh7 {[%clk 0:00:29.5]} 92... Qh1+ {[%clk 0:00:08.7]}
93. Kg7 {[%clk 0:00:29.9]} 93... Qa1+ {[%clk 0:00:09.7]} 94. Kg8 {[%clk
0:00:30.8]} 94... Qa8+ {[%clk 0:00:10.6]} 95. Kg7 {[%clk 0:00:32]} 95... Qa1+
{[%clk 0:00:11.6]} 96. Kh6 {[%clk 0:00:32.9]} 96... Qh1+ {[%clk 0:00:12.7]} 97.
Qh5 {[%clk 0:00:34]} 97... Qa1 {[%clk 0:00:04.9]} 98. Kh7 {[%clk 0:00:32.8]}
98... Kf6 {[%clk 0:00:02.6]} 99. Qh4+ {[%clk 0:00:30.9]} 99... Kf5 {[%clk
0:00:02.4]} 100. g7 {[%clk 0:00:30.9]} 100... Qa7 {[%clk 0:00:03.3]} 101. Qh5+
{[%clk 0:00:31.6]} 101... Kf6 {[%clk 0:00:03.6]} 102. Qg6+ {[%clk 0:00:32.5]}
102... Ke5 {[%clk 0:00:05]} 103. Kh8 {[%clk 0:00:33.3]} 103... Qa8+ {[%clk
0:00:06]} 104. g8=Q {[%clk 0:00:33.3]} 104... Qh1+ {[%clk 0:00:07.9]} 105. Kg7
{[%clk 0:00:33.3]} 1-0